[Event "ESP-ch Seniors 2017"]
[Site "Altea"]
[Date "2017.10.09"]
[Round "3"]
[White "Suba, Mihai"]
[Black "Bautista Sanchez, Joan"]
[Result "1-0"]
[ECO "B10"]
[WhiteElo "2315"]
[BlackElo "2123"]
[Annotator "NA"]
[PlyCount "39"]
[EventDate "2017.??.??"]
[EventType "swiss"]
[EventCountry "ESP"]
[SourceTitle "playchess.com"]
[Source "ChessBase"]
[SourceQuality "1"]
[TimeControl "5400+30"]

1. e4 {[%emt 0:01:08]} c6 {[%emt 0:00:12]} 2. c4 {[%emt 0:00:08]} d5 {[%emt 0:01:56]} 3. cxd5 {[%emt 0:00:08]} cxd5 {[%emt 0:00:07]} 4. exd5 {[%emt 0:00:02]} Qxd5 {[%emt 0:00:22]} 5. Nc3 {[%emt 0:00:26]} Qd8 {[%emt 0:00:12]} 6. d4 {[%emt 0:00:31]} Nf6 {[%emt 0:00:26]} 7. Nf3 {[%emt 0:00:20]} e6 {[%emt 0:00:29]} 8. Bd3 {[%emt 0:00:34]} Be7 {[%emt 0:00:39]} 9. O-O {[%emt 0:00:11]} O-O {[%emt 0:00:22]} 10. Re1 {[%emt 0:00:46]} Nc6 {[%emt 0:02:11]} 11. a3 {[%emt 0:00:08]} a6 {[%emt 0:02:05]} 12. Bc2 {[%emt 0:00:20]} b5 {[%emt 0:09:39]} 13. Qd3 {[%emt 0:00:19]} Bb7 {[%emt 0:01:03]} 14. d5 {[%emt 0:01:50]} exd5 {[%emt 0:03:11]} 15. Bg5 {[%emt 0:00:29]} Ne4 {[%emt 0:03:02]} 16. Nxe4 {[%emt 0:02:11]} dxe4 {[%emt 0:00:42]} 17. Qxe4 {[%emt 0:00:39]} f5 {[%emt 0:00:41]} 18. Qe6+ {[%emt 0:02:43]} Rf7 {[%emt 0:01:48]} 19. Bb3 {[%emt 0:00:37]} Qf8 {[%emt 0:00:28]} 20. Bxe7 {[%emt 0:00:16]} 1-0

[Event "ESP-ch Seniors 2017"]
[Site "Altea"]
[Date "2017.10.09"]
[Round "3"]
[White "Simon Padros, Emili"]
[Black "Buxade Roca, Guillermo"]
[Result "1/2-1/2"]
[ECO "B33"]
[WhiteElo "2153"]
[BlackElo "2025"]
[Annotator "NA"]
[PlyCount "42"]
[EventDate "2017.??.??"]
[EventType "swiss"]
[EventCountry "ESP"]
[SourceTitle "playchess.com"]
[Source "ChessBase"]
[SourceQuality "1"]
[TimeControl "5400+30"]

1. e4 {[%emt 0:00:00]} c5 {[%emt 0:00:12]} 2. Nf3 {[%emt 0:00:00]} Nc6 {[%emt 0:00:11]} 3. d4 {[%emt 0:00:06]} cxd4 {[%emt 0:00:10]} 4. Nxd4 {[%emt 0:00:14]} Nf6 {[%emt 0:00:22]} 5. Nc3 {[%emt 0:00:13]} e5 {[%emt 0:00:23]} 6. Ndb5 {[%emt 0:00:15]} d6 {[%emt 0:00:26]} 7. Bg5 {[%emt 0:00:21]} a6 {[%emt 0:00:14]} 8. Na3 {[%emt 0:00:09]} b5 {[%emt 0:00:18]} 9. Nd5 {[%emt 0:00:22]} Be7 {[%emt 0:00:10]} 10. Bxf6 {[%emt 0:00:10]} Bxf6 {[%emt 0:00:11]} 11. c4 {[%emt 0:00:24]} b4 {[%emt 0:00:11]} 12. Nc2 {[%emt 0:00:09]} a5 {[%emt 0:00:09]} 13. g3 {[%emt 0:00:19]} g6 {[%emt 0:00:12]} 14. Bg2 {[%emt 0:02:20]} Bg7 {[%emt 0:00:11]} 15. O-O {[%emt 0:00:39]} O-O {[%emt 0:00:32]} 16. Qd3 {[%emt 0:00:50]} Be6 {[%emt 0:00:35]} 17. Rad1 {[%emt 0:01:39]} Rc8 {[%emt 0:00:34]} 18. b3 {[%emt 0:01:25]} Bxd5 {[%emt 0:03:31]} 19. exd5 {[%emt 0:23:53]} Nb8 {[%emt 0:05:19]} 20. a3 {[%emt 0:05:32]} Na6 {[%emt 0:08:39]} 21. axb4 {[%emt 0:01:42]} Nxb4 1/2-1/2

[Event "ESP-ch Seniors 2017"]
[Site "Altea"]
[Date "2017.10.09"]
[Round "3"]
[White "Pastor Alonso De Prado, Alberto"]
[Black "Vallbona Domingo, Joan"]
[Result "1-0"]
[ECO "B22"]
[WhiteElo "2131"]
[BlackElo "1889"]
[Annotator "NA"]
[PlyCount "63"]
[EventDate "2017.??.??"]
[EventType "swiss"]
[EventCountry "ESP"]
[SourceTitle "playchess.com"]
[Source "ChessBase"]
[SourceQuality "1"]
[TimeControl "5400+30"]

1. e4 {[%emt 0:01:21]} c5 {[%emt 0:00:05]} 2. c3 {[%emt 0:00:09]} Nf6 {[%emt 0:00:05]} 3. e5 {[%emt 0:00:06]} Nd5 {[%emt 0:00:05]} 4. d4 {[%emt 0:00:20]} cxd4 {[%emt 0:00:06]} 5. Nf3 {[%emt 0:00:53]} e6 {[%emt 0:00:12]} 6. cxd4 {[%emt 0:00:10]} b6 {[%emt 0:00:29]} 7. Nc3 {[%emt 0:00:22]} Nxc3 {[%emt 0:00:06]} 8. bxc3 {[%emt 0:00:07]} Qc7 {[%emt 0:00:06]} 9. Bd2 {[%emt 0:00:36]} Be7 {[%emt 0:00:11]} 10. Bd3 {[%emt 0:00:57]} Ba6 {[%emt 0:00:14]} 11. Bxa6 {[%emt 0:00:07]} Nxa6 {[%emt 0:00:02]} 12. O-O {[%emt 0:01:19]} O-O {[%emt 0:00:10]} 13. Qe2 {[%emt 0:02:12]} Qb7 {[%emt 0:00:31]} 14. Bg5 {[%emt 0:05:09] B22: Sicilian: 2 c3} f6 {[%emt 0:04:03]} 15. exf6 {[%emt 0:00:07]} Bxf6 {[%emt 0:01:20]} 16. Bxf6 {[%emt 0:02:07]} gxf6 {[%emt 0:07:52]} (16... Rxf6 17. Ne5 Rd8 18. Rad1 Nc7 19. c4 d6 20. Ng4 Rf4 21. f3 Rdf8 {½-½ (49) Carmaciu,L (2388)-Nikolov,M (2553) Golden Sands 2012}) 17. a4 $146 {[%emt 0:08:41]} ({Predecessor:} 17. d5 Nc5 18. Rad1 Rae8 19. Nh4 exd5 20. Qg4+ Kh8 21. Nf5 Rg8 {1-0 (58) Garcia,E (2164)-Ovejero,J (2238) Bogota 2003}) 17... Nb8 {[%emt 0:07:30]} 18. Rfb1 {[%emt 0:06:17]} Qc7 {[%emt 0:02:09]} 19. a5 {[%emt 0:06:42]} bxa5 {[%emt 0:02:18]} 20. c4 {[%emt 0:04:21]} Nc6 {[%emt 0:18:36]} 21. d5 {[%emt 0:04:08]} exd5 {[%emt 0:16:03]} 22. cxd5 {[%emt 0:00:21]} Nb4 {[%emt 0:00:21]} 23. Qb5 {[%emt 0:05:48]} (23. Rc1 $5 {[%cal Rc1c7]} Qb6 24. Nh4 $14) 23... Rab8 {[%emt 0:02:02]} 24. Qxa5 {[%emt 0:00:19]} Qxa5 {[%emt 0:00:37]} 25. Rxa5 {[%emt 0:00:10]} Nxd5 {[%emt 0:00:06]} 26. Rba1 {[%emt 0:00:09]} Nc7 {[%emt 0:04:24]} 27. Rxa7 {[%emt 0:08:26]} Ra8 {[%emt 0:00:30]} 28. g4 {[%emt 0:00:13]} Rfc8 {[%emt 0:01:04]} 29. Kg2 $14 {[%emt 0:00:36]} Rxa7 {[%emt 0:04:43]} 30. Rxa7 {[%emt 0:00:08]} d6 {[%emt 0:04:29]} 31. Nd4 {[%emt 0:00:26]} Kf8 {[%emt 0:01:03]} 32. Nf3 1-0

[Event "ESP-ch Seniors 2017"]
[Site "Altea"]
[Date "2017.10.09"]
[Round "3"]
[White "Ladron De Guevara Galar, Fco J"]
[Black "Riquelme Valero, Manuel Damian"]
[Result "1/2-1/2"]
[ECO "A88"]
[WhiteElo "2081"]
[BlackElo "2147"]
[Annotator "ChessBase"]
[PlyCount "121"]
[EventDate "2017.??.??"]
[EventType "swiss"]
[EventCountry "ESP"]
[SourceTitle "playchess.com"]
[Source "ChessBase"]
[SourceQuality "1"]
[TimeControl "5400+30"]

1. d4 {[%emt 0:00:00]} f5 {[%emt 0:00:42]} 2. Nf3 Nf6 3. g3 {[%emt 0:00:56]} g6 {[%emt 0:03:05]} 4. Bg2 {[%emt 0:00:43]} Bg7 {[%emt 0:00:24]} 5. O-O {[%emt 0:00:20]} O-O 6. c4 {[%emt 0:00:36]} d6 {[%emt 0:01:18]} 7. Nc3 {[%emt 0:00:42]} c6 {[%emt 0:00:13]} 8. d5 {[%emt 0:00:23]} e5 {[%emt 0:02:28]} 9. dxe6 {[%emt 0:01:38]} Bxe6 {[%emt 0:02:01]} 10. b3 {[%emt 0:03:02]} Na6 {[%emt 0:05:48]} 11. Ng5 Re8 {[%emt 0:01:06]} 12. Nxe6 {[%emt 0:04:02]} Rxe6 {[%emt 0:05:38]} 13. Rb1 {[%emt 0:14:08]} Nc5 {[%emt 0:08:02]} 14. e3 {[%emt 0:03:40]} Qc7 {[%emt 0:09:31]} 15. Qc2 {[%emt 0:01:27]} Nce4 {[%emt 0:07:00]} 16. Ne2 {[%emt 0:04:20]} a5 {[%emt 0:05:37]} 17. Bb2 Ree8 {[%emt 0:01:53]} 18. Rbd1 {[%emt 0:04:10]} Rad8 {[%emt 0:05:48]} 19. Bd4 {[%emt 0:13:40]} c5 {[%emt 0:03:19]} 20. Ba1 {[%emt 0:06:47]} Qe7 21. Nf4 {[%emt 0:02:36]} g5 {[%emt 0:10:49]} 22. Nd5 Nxd5 23. Rxd5 {[%emt 0:00:43]} Bxa1 {[%emt 0:02:14]} 24. Rxa1 Qf6 {[%emt 0:00:38]} 25. Rc1 {[%emt 0:00:29]} g4 {[%emt 0:00:37]} 26. Bxe4 Rxe4 27. Qc3 {[%emt 0:03:24]} Qxc3 {[%emt 0:03:55]} 28. Rxc3 Re5 {[%emt 0:14:04]} 29. Rcd3 {[%emt 0:00:43]} Rxd5 {[%emt 0:00:24]} 30. Rxd5 {[%emt 0:00:08]} a4 {[%emt 0:00:08]} 31. Rxf5 {[%emt 0:03:38]} axb3 {[%emt 0:00:57]} 32. axb3 {[%emt 0:00:07]} Ra8 {[%emt 0:00:24]} 33. Rd5 {[%emt 0:02:56]} Ra6 34. Kg2 Rb6 {[%emt 0:00:41]} 35. Rd3 {[%emt 0:00:39]} Kf7 {[%emt 0:01:00]} 36. h3 {[%emt 0:02:48]} h5 {[%emt 0:02:33]} 37. f3 {[%emt 0:01:35]} Ke6 {[%emt 0:00:10]} 38. hxg4 {[%emt 0:00:30]} hxg4 {[%emt 0:00:08]} 39. fxg4 Rb4 {[%emt 0:00:08]} 40. Kf3 {[%emt 0:01:36]} b5 {[%emt 0:00:42]} 41. cxb5 {[%emt 0:04:54]} d5 {[%emt 0:02:18]} 42. Rc3 {[%emt 0:03:39]} Rxb5 {[%emt 0:03:41]} 43. Kf4 d4 {[%emt 0:00:09]} 44. exd4 {[%emt 0:01:23]} cxd4 {[%emt 0:00:52]} 45. Rc8 {[%emt 0:12:10]} Rxb3 {[%emt 0:00:19]} 46. Rd8 {[%emt 0:00:51]} Rd3 {[%emt 0:00:19]} 47. g5 {[%emt 0:01:16]} Rd1 {[%emt 0:02:12]} 48. g6 {[%emt 0:00:25]} Rf1+ 49. Kg5 Rf5+ {[%emt 0:00:39]} 50. Kh6 {[%emt 0:00:52]} Rf3 51. g7 {[%emt 0:01:41]} Rxg3 {[%emt 0:00:16]} 52. g8=Q+ Rxg8 {[%emt 0:00:11]} 53. Rxg8 {[%emt 0:01:10]} Kf5 54. Rd8 {[%emt 0:02:22]} Ke4 {[%emt 0:00:43]} 55. Kg5 {[%emt 0:01:11]} d3 {[%emt 0:00:00]} 56. Kg4 {[%emt 0:01:38]} Ke3 {[%emt 0:00:27]} 57. Kg3 {[%emt 0:01:10]} d2 {[%emt 0:00:12]} 58. Re8+ Kd3 59. Rd8+ {[%emt 0:00:51]} Ke2 {[%emt 0:00:40]} 60. Rxd2+ {[%emt 0:00:04]} Kxd2 61. Kf4 1/2-1/2

[Event "ESP-ch Seniors 2017"]
[Site "Altea"]
[Date "2017.10.09"]
[Round "3"]
[White "Fernandez Perez, Josep"]
[Black "Sanz Bastos, Fernando"]
[Result "1/2-1/2"]
[ECO "C65"]
[WhiteElo "2045"]
[BlackElo "1981"]
[Annotator "NA"]
[PlyCount "34"]
[EventDate "2017.??.??"]
[EventType "swiss"]
[EventCountry "ESP"]
[SourceTitle "playchess.com"]
[Source "ChessBase"]
[SourceQuality "1"]
[TimeControl "5400+30"]

1. e4 {[%emt 0:00:00]} e5 {[%emt 0:00:08]} 2. Nf3 {[%emt 0:00:00]} Nc6 {[%emt 0:00:20]} 3. Bb5 {[%emt 0:00:07]} Bc5 {[%emt 0:00:09]} 4. O-O {[%emt 0:00:23]} Nf6 {[%emt 0:00:09]} 5. c3 {[%emt 0:00:41]} O-O {[%emt 0:00:15]} 6. d4 {[%emt 0:01:39]} Bb6 {[%emt 0:00:08]} 7. Bg5 {[%emt 0:03:44]} h6 8. Bxf6 Qxf6 {[%emt 0:01:41]} 9. Bxc6 {[%emt 0:02:02]} Qxc6 {[%emt 0:01:56]} 10. Nxe5 {[%emt 0:01:59]} Qxe4 {[%emt 0:00:06]} 11. Nd2 {[%emt 0:01:44]} Qh4 {[%emt 0:02:56]} 12. Qg4 {[%emt 0:05:23]} Qxg4 {[%emt 0:03:25]} 13. Nxg4 {[%emt 0:00:10]} d5 {[%emt 0:03:45]} 14. Ne5 {[%emt 0:05:19]} Bf5 {[%emt 0:06:18]} 15. Rfe1 {[%emt 0:02:27]} f6 {[%emt 0:01:26]} 16. Nef3 {[%emt 0:00:19]} Rae8 {[%emt 0:03:30]} 17. Rxe8 {[%emt 0:02:12]} Rxe8 {[%emt 0:00:11]} 1/2-1/2

[Event "ESP-ch Seniors 2017"]
[Site "Altea"]
[Date "2017.10.09"]
[Round "3"]
[White "Gonzalez Rivera, Eduardo"]
[Black "Dominguez Rueda, Juan"]
[Result "0-1"]
[ECO "C65"]
[WhiteElo "2020"]
[BlackElo "2135"]
[Annotator "ChessBase"]
[PlyCount "88"]
[EventDate "2017.??.??"]
[EventType "swiss"]
[EventCountry "ESP"]
[TimeControl "5400+30"]

1. e4 {[%emt 0:00:00]} e5 {[%emt 0:00:09]} 2. Nf3 {[%emt 0:00:00]} Nc6 {[%emt 0:00:08]} 3. Bb5 {[%emt 0:00:00]} Nf6 {[%emt 0:00:15]} 4. d3 {[%emt 0:01:11]} d6 {[%emt 0:00:23]} 5. c3 {[%emt 0:00:51]} Be7 {[%emt 0:01:25]} 6. O-O {[%emt 0:00:26]} O-O {[%emt 0:00:18]} 7. Re1 {[%emt 0:00:42]} Bd7 {[%emt 0:02:14]} 8. Ba4 {[%emt 0:00:29]} Re8 {[%emt 0:01:23]} 9. Nbd2 {[%emt 0:01:47]} a6 {[%emt 0:05:32]} 10. Nf1 {[%emt 0:01:17]} b5 {[%emt 0:02:49]} 11. Bc2 {[%emt 0:00:42]} Bf8 {[%emt 0:01:29]} 12. Ne3 {[%emt 0:05:02]} g6 {[%emt 0:01:26]} 13. Bd2 {[%emt 0:03:43]} Bg7 {[%emt 0:01:26]} 14. a4 {[%emt 0:00:13]} b4 {[%emt 0:04:20]} 15. cxb4 {[%emt 0:02:20]} Rb8 {[%emt 0:02:17]} 16. b5 {[%emt 0:14:18]} axb5 {[%emt 0:00:24]} 17. axb5 {[%emt 0:04:18]} Rxb5 {[%emt 0:00:20]} 18. Bc3 {[%emt 0:00:05]} Rb8 {[%emt 0:12:40]} 19. Bb3 {[%emt 0:08:13]} Nh5 {[%emt 0:04:01]} 20. Nd5 {[%emt 0:01:38]} Nd4 {[%emt 0:02:32]} 21. Nxd4 {[%emt 0:04:20]} exd4 {[%emt 0:00:08]} 22. Ba5 {[%emt 0:00:02]} Rb7 {[%emt 0:07:56]} 23. Rc1 {[%emt 0:06:09]} Qh4 {[%emt 0:17:05]} 24. g3 {[%emt 0:14:10]} Qh3 {[%emt 0:00:31]} 25. Rxc7 {[%emt 0:01:40]} Reb8 {[%emt 0:15:57]} 26. Rxb7 {[%emt 0:04:36]} Rxb7 {[%emt 0:00:02]} 27. Nb6 {[%emt 0:00:30]} Nf6 {[%emt 0:06:53]} 28. f3 {[%emt 0:04:49]} Bh6 {[%emt 0:00:16]} 29. Nxd7 {[%emt 0:00:40]} Nxd7 {[%emt 0:01:08]} 30. f4 {[%emt 0:05:44]} Nc5 {[%emt 0:00:26]} 31. Bd5 {[%emt 0:06:47]} Rxb2 {[%emt 0:02:22]} 32. Re2 {[%emt 0:00:02]} Qh5 {[%emt 0:01:44]} 33. Rd2 {[%emt 0:00:19]} Qxd1+ {[%emt 0:02:27]} 34. Rxd1 {[%emt 0:00:01]} g5 {[%emt 0:00:46]} 35. Bc7 {[%emt 0:01:26]} gxf4 {[%emt 0:02:05]} 36. Bxd6 {[%emt 0:00:02]} Na4 {[%emt 0:00:59]} 37. Ra1 {[%emt 0:02:12]} f3 {[%emt 0:00:17]} 38. Bf4 {[%emt 0:03:49]} Bxf4 {[%emt 0:00:35]} 39. gxf4 {[%emt 0:00:01]} Nc3 {[%emt 0:00:16]} 40. f5 {[%emt 0:02:10]} Kg7 {[%emt 0:00:26]} 41. Bc4 {[%emt 0:00:48]} Kf6 {[%emt 0:00:23]} 42. Ra7 {[%emt 0:00:08]} f2+ {[%emt 0:00:24]} 43. Kg2 {[%emt 0:00:07]} Nd1 {[%emt 0:00:16]} 44. Rxf7+ {[%emt 0:01:49]} Ke5 {[%emt 0:00:14]} 0-1

[Event "ESP-ch Seniors 2017"]
[Site "Altea"]
[Date "2017.10.09"]
[Round "3"]
[White "Lopez de Turiso, Jose Angel"]
[Black "Aranaz Portugues, Jose Carlos"]
[Result "0-1"]
[ECO "C14"]
[WhiteElo "2020"]
[BlackElo "2159"]
[Annotator "ChessBase"]
[PlyCount "104"]
[EventDate "2017.??.??"]
[EventType "swiss"]
[EventCountry "ESP"]
[SourceTitle "playchess.com"]
[Source "ChessBase"]
[SourceQuality "1"]
[TimeControl "5400+30"]

1. e4 {[%emt 0:00:00]} e6 {[%emt 0:00:21]} 2. d4 {[%emt 0:00:00]} d5 {[%emt 0:00:04]} 3. Nc3 {[%emt 0:00:02]} Nf6 {[%emt 0:00:12]} 4. Bg5 {[%emt 0:00:25]} Be7 {[%emt 0:00:06]} 5. e5 {[%emt 0:01:09]} Nfd7 {[%emt 0:00:21]} 6. Bxe7 {[%emt 0:00:15]} Qxe7 {[%emt 0:00:04]} 7. f4 {[%emt 0:00:44]} O-O {[%emt 0:00:28]} 8. Qd2 {[%emt 0:01:16]} c5 {[%emt 0:00:31]} 9. Nf3 {[%emt 0:00:47]} Nc6 {[%emt 0:00:49]} 10. dxc5 {[%emt 0:01:36]} Qxc5 {[%emt 0:03:53]} 11. O-O-O {[%emt 0:02:29]} a6 {[%emt 0:00:20]} 12. Nd4 {[%emt 0:02:59]} b5 {[%emt 0:01:22]} 13. Nxc6 {[%emt 0:07:58]} Qxc6 {[%emt 0:00:02]} 14. Ne2 {[%emt 0:00:11]} Nb6 {[%emt 0:00:28]} 15. Nd4 {[%emt 0:01:21]} Qc7 {[%emt 0:02:12]} 16. Bd3 {[%emt 0:07:35]} Nc4 {[%emt 0:01:04]} 17. Qf2 {[%emt 0:04:34]} Qa5 {[%emt 0:01:10]} 18. Kb1 {[%emt 0:01:32]} Bd7 {[%emt 0:00:06]} 19. g4 {[%emt 0:06:09]} Rfc8 {[%emt 0:03:12]} 20. Qh4 {[%emt 0:32:47]} g6 {[%emt 0:03:28]} 21. f5 {[%emt 0:01:17]} Qb4 {[%emt 0:24:42]} 22. Bxc4 {[%emt 0:06:03]} bxc4 {[%emt 0:03:07]} 23. c3 {[%emt 0:00:54]} Qf8 {[%emt 0:01:43]} 24. f6 {[%emt 0:01:09]} Rcb8 {[%emt 0:07:47]} 25. Rd2 {[%emt 0:04:57]} Rb6 {[%emt 0:01:33]} 26. Re1 {[%emt 0:01:46]} Rab8 {[%emt 0:09:34]} 27. Ka1 {[%emt 0:01:11]} Ba4 {[%emt 0:01:12]} 28. Re3 {[%emt 0:00:55]} h5 {[%emt 0:01:18]} 29. Qg5 {[%emt 0:02:41]} hxg4 {[%emt 0:02:39]} 30. h3 {[%emt 0:01:17]} Qa3 {[%emt 0:10:06]} 31. Qh6 {[%emt 0:02:14]} Qf8 {[%emt 0:00:23]} 32. Qf4 {[%emt 0:00:11]} Qa3 {[%emt 0:00:16]} 33. Qh2 {[%emt 0:01:50]} g3 {[%emt 0:07:02]} 34. Rxg3 {[%emt 0:00:12]} Qf8 {[%emt 0:00:02]} 35. h4 {[%emt 0:04:46]} Qh6 {[%emt 0:00:03]} 36. Rg5 {[%emt 0:00:09]} Kf8 {[%emt 0:02:38]} 37. Nf3 {[%emt 0:00:59]} Ke8 {[%emt 0:00:55]} 38. Qf2 {[%emt 0:01:07]} Kd7 {[%emt 0:04:38]} 39. h5 {[%emt 0:01:01]} gxh5 {[%emt 0:01:11]} 40. Qc5 {[%emt 0:00:52]} Qf8 {[%emt 0:00:26]} 41. Qxf8 {[%emt 0:00:33]} Rxf8 {[%emt 0:00:02]} 42. Rxh5 {[%emt 0:00:00]} Rg8 {[%emt 0:02:04]} 43. Rh7 {[%emt 0:00:38]} Ke8 {[%emt 0:02:46]} 44. Rdh2 {[%emt 0:00:38]} Bc2 {[%emt 0:00:52]} 45. Rh8 {[%emt 0:00:12]} Rxh8 {[%emt 0:00:15]} 46. Rxh8+ {[%emt 0:00:01]} Kd7 {[%emt 0:00:17]} 47. Rf8 {[%emt 0:00:46]} Bg6 {[%emt 0:00:27]} 48. Ng5 {[%emt 0:00:26]} d4 {[%emt 0:00:09]} 49. cxd4 {[%emt 0:01:24]} c3 {[%emt 0:00:01]} 50. b3 {[%emt 0:00:24]} Rc6 {[%emt 0:00:46]} 51. Ra8 {[%emt 0:00:23]} c2 {[%emt 0:00:22]} 52. Ra7+ {[%emt 0:00:08]} Kc8 {[%emt 0:00:21]} 0-1

[Event "ESP-ch Seniors 2017"]
[Site "Altea"]
[Date "2017.10.09"]
[Round "3"]
[White "Gordero Montoya, Felix"]
[Black "Cantero Navarro, Antonio"]
[Result "0-1"]
[ECO "B32"]
[WhiteElo "1963"]
[BlackElo "2153"]
[Annotator "NA"]
[PlyCount "51"]
[EventDate "2017.??.??"]
[EventType "swiss"]
[EventCountry "ESP"]
[SourceTitle "playchess.com"]
[Source "ChessBase"]
[SourceQuality "1"]
[TimeControl "5400+30"]

1. e4 {[%emt 0:00:00]} c5 {[%emt 0:00:10]} 2. Nf3 {[%emt 0:00:03]} Nc6 {[%emt 0:00:06]} 3. d4 {[%emt 0:00:27]} cxd4 {[%emt 0:00:06]} 4. Nxd4 {[%emt 0:01:42]} g6 {[%emt 0:00:09]} 5. Be2 {[%emt 0:01:07]} Bg7 {[%emt 0:00:13]} 6. Be3 {[%emt 0:00:36]} Nf6 {[%emt 0:01:07]} 7. Nc3 {[%emt 0:03:55]} O-O {[%emt 0:00:11]} 8. a4 {[%emt 0:02:35] B34: Sizilianisch (Beschleunigtes Fianchetto)} (8. Nb3 d6 9. g4 a6 10. h4 b5 11. h5 b4 12. Nd5 e6 13. Nb6 Rb8 14. Nxc8 Qxc8 15. Qxd6 e5 16. O-O-O a5 17. hxg6 hxg6 {1-0 (37) Fedoseev,V (2731)-Inarkiev,E (2702) Tbilisi 2017}) 8... d5 {[%emt 0:09:02]} 9. exd5 {[%emt 0:04:32]} Nxd5 $146 {[%emt 0:04:29]} ({Vorgänger:} 9... Nb4 10. O-O Nbxd5 11. Nxd5 Nxd5 12. Bc1 Qb6 13. Nb5 Be6 14. c4 Nb4 {1-0 (42) Lucaci,M (2055)-Clesiu,R (1745) Deva 1999}) 10. Nxd5 {[%emt 0:01:18]} Qxd5 {[%emt 0:00:16]} 11. Nxc6 {[%emt 0:03:28]} Qxc6 {[%emt 0:00:26]} 12. Bf3 {[%emt 0:01:25]} Qa6 {[%emt 0:00:30]} 13. c3 {[%emt 0:00:41]} Be6 {[%emt 0:01:36]} 14. Be2 {[%emt 0:02:15]} Bc4 {[%emt 0:00:20]} 15. Bxc4 {[%emt 0:00:17]} Qxc4 {[%emt 0:00:06]} 16. Qe2 {[%emt 0:00:09]} Bxc3+ {[%emt 0:00:13]} 17. Kf1 {[%emt 0:03:24]} Qxe2+ {[%emt 0:01:33]} 18. Kxe2 {[%emt 0:00:11]} Be5 {[%emt 0:18:53]} 19. Rac1 {[%emt 0:00:32]} Rfc8 {[%emt 0:05:00]} 20. Rhd1 {[%emt 0:05:48]} a6 {[%emt 0:36:48]} ({Doch nicht} 20... Bxh2 $6 21. g3 $14) (20... Bd6 $17) 21. Bb6 {[%emt 0:10:24]} ({Better is} 21. Rd7 $15) 21... Kf8 {[%emt 0:05:35]} 22. Rxc8+ {[%emt 0:03:07]} Rxc8 {[%emt 0:00:35]} 23. Rd7 $1 {[%emt 0:03:44]} Rc2+ {[%emt 0:00:00]} 24. Rd2 $2 (24. Kd3 $1 $11 {and White has nothing to worry.} Rxb2 25. a5) 24... Rxd2+ 25. Kxd2 {[%emt 0:02:39]} Bxb2 $19 {[%emt 0:00:00]} 26. Ke2 0-1

[Event "ESP-ch Seniors 2017"]
[Site "Altea"]
[Date "2017.10.09"]
[Round "3"]
[White "Hernandez Delgado, Gabriel"]
[Black "Serra Olives, Tomas"]
[Result "0-1"]
[ECO "A05"]
[WhiteElo "1862"]
[BlackElo "2146"]
[Annotator "ChessBase"]
[PlyCount "68"]
[EventDate "2017.??.??"]
[EventType "swiss"]
[EventCountry "ESP"]
[SourceTitle "playchess.com"]
[Source "ChessBase"]
[SourceQuality "1"]
[TimeControl "5400+30"]

1. Nf3 {[%emt 0:00:00]} Nf6 {[%emt 0:00:09]} 2. g3 {[%emt 0:00:02]} b6 {[%emt 0:00:05]} 3. Bg2 {[%emt 0:00:20]} Bb7 {[%emt 0:00:05]} 4. b3 {[%emt 0:01:07]} e6 {[%emt 0:00:30]} 5. Bb2 {[%emt 0:00:19]} c5 {[%emt 0:00:31]} 6. c4 Be7 {[%emt 0:00:26]} 7. O-O {[%emt 0:01:43]} Qc7 {[%emt 0:00:59]} 8. Nc3 {[%emt 0:01:06]} a6 {[%emt 0:00:08]} 9. Rc1 {[%emt 0:04:16]} d6 {[%emt 0:00:27]} 10. d4 {[%emt 0:00:43]} cxd4 {[%emt 0:00:07]} 11. Qxd4 {[%emt 0:01:33]} Nbd7 {[%emt 0:01:01]} 12. Rfd1 {[%emt 0:06:32]} O-O {[%emt 0:02:15]} 13. b4 {[%emt 0:06:57]} Rac8 {[%emt 0:02:06]} 14. Nd2 {[%emt 0:01:58]} Bxg2 {[%emt 0:00:33]} 15. Kxg2 {[%emt 0:00:00]} Rfe8 {[%emt 0:05:31]} 16. Nce4 {[%emt 0:03:41]} Qb7 {[%emt 0:06:28]} 17. Kg1 {[%emt 0:00:36]} d5 {[%emt 0:04:10]} 18. cxd5 {[%emt 0:11:56]} Qxd5 {[%emt 0:07:31]} 19. Qxd5 {[%emt 0:03:15]} Nxd5 {[%emt 0:01:11]} 20. a3 {[%emt 0:00:17]} b5 {[%emt 0:04:29]} 21. Nb3 {[%emt 0:00:34]} N7b6 {[%emt 0:00:33]} 22. Rxc8 {[%emt 0:01:12]} Rxc8 {[%emt 0:00:14]} 23. Nec5 {[%emt 0:00:05]} Nc4 {[%emt 0:00:45]} 24. Bc1 {[%emt 0:00:36]} Nc3 {[%emt 0:07:03]} 25. Re1 {[%emt 0:03:15]} a5 {[%emt 0:00:40]} 26. Be3 {[%emt 0:09:40]} axb4 {[%emt 0:03:33]} 27. axb4 {[%emt 0:02:29]} Nxe3 {[%emt 0:01:02]} 28. fxe3 {[%emt 0:00:02]} Nd5 {[%emt 0:00:49]} 29. Nd4 {[%emt 0:06:39]} Nxb4 {[%emt 0:03:17]} 30. Ne4 {[%emt 0:02:12]} Rb8 {[%emt 0:06:14]} 31. Nc3 {[%emt 0:03:15]} Nd5 {[%emt 0:05:03]} 32. Nc6 {[%emt 0:01:34]} Rb7 {[%emt 0:01:23]} 33. Nxb5 {[%emt 0:03:25]} Rxb5 {[%emt 0:00:25]} 34. e4 {[%emt 0:00:03]} Bc5+ {[%emt 0:00:10]} 0-1